bitfinex/quotes_SOLUSD_20240702
["timestamp","ask_amount","ask_price","bid_price","bid_amount"]
[1719924679684,1.0,151.05,150.97,27.06]
[1719924680096,6.6191,151.08,150.97,27.06]
[1719924680295,21.0,151.07,150.98,15.472]
[1719924680708,1.0,151.06,150.98,15.472]
[1719924680884,49.6286,151.13,150.98,15.472]
[1719924680885,1.0,151.07,150.98,15.472]
[1719924681092,6.6178,151.11,151.01,6.0753]
[1719924681412,1.0,151.1,151.02,16.36723866]
[1719924681616,1.0,151.1,151.02,15.0433]
[1719924682530,1.0,151.09,151.02,15.0433]
[1719924682688,6.619,151.08,151.02,15.0433]
[1719924682887,16.544,151.12,151.02,15.0433]
[1719924682888,1.0,151.07,151.02,15.0433]
[1719924683190,1.0,151.09,151.02,15.0433]
[1719924683391,6.6184,151.1,151.02,15.0433]
[1719924683610,7.6186,151.09,151.02,15.0433]
[1719924683808,1.0,151.08,151.02,15.0433]
[1719924684010,1.0,151.07,151.02,15.0433]
[1719924684691,6.6189,151.09,151.02,15.0433]
[1719924684898,1.0,151.08,151.02,15.0433]
[1719924685105,1.0,151.07,151.02,15.0433]
[1719924685495,6.6199,151.06,151.02,15.0433]
[1719924685690,1.0,151.05,150.97,16.5974]
[1719924685896,6.6213,151.03,150.97,16.5974]
[1719924686116,1.0,151.02,150.97,16.5974]
[1719924686319,16.5472,151.09,150.97,16.5974]
[1719924686320,1.0,151.01,150.97,16.5974]
[1719924686607,6.6221,151.01,150.97,16.5974]
[1719924686812,1.0,151.0,150.97,16.5974]
[1719924687814,1.0,151.01,150.97,16.5974]
[1719924688598,6.6226,151.0,150.97,16.5974]
[1719924688902,1.0,150.99,150.97,16.5974]
[1719924689100,1.0,151.04,150.97,16.5974]
[1719924689305,21.0,151.04,150.97,16.5974]
[1719924689509,6.6215,151.03,150.97,16.5974]
[1719924689712,27.6217,151.02,150.97,16.5974]
[1719924690018,1.0,151.01,150.97,16.5974]
[1719924690212,21.0,151.02,150.97,16.5974]
[1719924690424,1.0,151.01,150.97,16.5974]
[1719924690914,20.0,151.02,150.97,16.5974]
[1719924690915,1.0,151.02,150.97,16.5974]
[1719924691094,6.6216,151.02,150.97,16.5974]
[1719924691291,1.0,151.01,150.97,16.5974]
[1719924691495,16.551,151.05,150.97,16.5974]
[1719924691707,21.0,151.04,150.97,16.5974]
[1719924691906,6.6221,151.01,150.97,16.5974]
[1719924692109,1.0,151.0,150.97,16.5974]
[1719924692816,6.623,150.99,150.97,16.5974]
[1719924693020,1.0,150.98,150.92,22.132]
[1719924693609,6.6238,150.97,150.92,22.132]
[1719924693829,6.625,150.95,150.92,16.1272]
[1719924694026,1.0,150.94,150.92,16.1272]
[1719924695024,1.0,150.95,150.92,16.1272]
[1719924696116,6.6237,150.98,150.92,16.1272]
[1719924696308,1.0,150.97,150.92,16.1272]
[1719924696509,1.0,150.99,150.92,16.1272]
[1719924696704,1.0,150.98,150.92,16.1272]
[1719924696908,1.0,151.0,150.92,16.1272]
[1719924697398,1.0,151.0,150.92,43.1872]
[1719924697622,1.0,151.01,150.93,6.1651]
[1719924697812,1.0,151.03,150.93,6.1651]
[1719924698019,1.0,151.03,150.95,27.06]
[1719924698221,1.0,151.05,150.95,27.06]
[1719924698407,1.0,151.04,150.95,27.06]
[1719924698816,6.6206,151.05,150.95,27.06]
[1719924699003,1.0,151.04,150.95,27.06]
[1719924700933,1.0,151.03,150.95,27.06]
[1719924701738,1.0,151.03,150.94,16.6025]
[1719924701739,7.6214,151.03,150.94,16.6025]
[1719924701919,1.0,151.02,150.94,16.6025]
[1719924702120,1.0,151.01,150.94,16.6025]
[1719924702920,6.623,150.99,150.94,16.6025]
[1719924703138,1.0,151.01,150.94,16.6025]
[1719924704329,1.0,151.0,150.94,16.6025]
[1719924704624,7.6225,151.0,150.94,16.6025]
[1719924704840,1.0,151.0,150.94,16.6025]
[1719924705045,1.0,151.02,150.94,16.6025]
[1719924705240,1.0,151.01,150.94,16.6025]
[1719924706156,1.0,151.02,150.94,16.6025]
[1719924706456,16.5437,151.12,150.98,27.06]
[1719924706746,6.6184,151.1,150.99,17.17944988]
[1719924706953,6.6186,151.09,150.99,17.17944988]
[1719924707544,6.6186,151.09,151.0,6.595]
[1719924707751,6.6186,151.09,151.01,1.3241333]
[1719924708542,40.197014,151.14,151.02,15.646]
[1719924708543,6.892814,151.14,151.02,15.646]
[1719924708858,6.6173,151.12,151.02,15.646]
[1719924709022,6.6174,151.12,151.02,15.646]
[1719924709221,6.6169,151.13,151.02,15.646]
[1719924709943,20.0,151.12,151.02,15.646]
[1719924710125,26.6173,151.12,151.02,15.646]
[1719924710847,20.0,151.12,151.02,15.646]
[1719924711140,26.6173,151.12,151.02,15.646]
[1719924711339,6.6177,151.11,151.02,15.646]
[1719924711732,20.0,151.12,151.02,15.646]
[1719924711942,20.0,151.13,151.02,15.646]
[1719924712125,6.6189,151.09,151.02,15.646]
[1719924712324,20.0,151.13,151.02,15.646]
[1719924714223,6.6177,151.11,151.02,15.646]
[1719924714423,20.0,151.13,151.02,15.646]
[1719924714424,6.6173,151.12,151.02,15.646]
[1719924714626,20.0,151.11,151.02,15.646]
[1719924714819,6.6174,151.12,151.02,15.646]
[1719924715127,20.0,151.11,151.02,15.646]
[1719924716242,6.6169,151.13,151.02,15.646]
[1719924716428,20.0,151.12,151.02,15.646]
[1719924718248,26.6172,151.12,151.02,15.646]
[1719924718447,6.6177,151.11,151.02,15.646]
[1719924718632,6.6181,151.1,151.02,15.646]
[1719924718827,6.6178,151.11,151.02,15.646]
[1719924719730,26.6173,151.12,151.02,15.646]
[1719924720140,6.6178,151.11,151.02,15.646]
[1719924721154,26.6174,151.12,151.02,15.646]
[1719924721332,6.6177,151.11,151.02,15.646]
[1719924721529,6.6183,151.1,151.02,15.646]
[1719924721734,20.0,151.12,151.02,15.646]
[1719924722348,6.619,151.08,151.02,15.646]
[1719924722939,20.0,151.12,151.02,15.646]
[1719924722940,6.6187,151.09,151.02,15.646]
[1719924723133,6.6182,151.1,151.02,15.646]
[1719924723329,20.0,151.12,151.02,15.646]
[1719924723541,6.6194,151.08,151.02,15.646]
[1719924723766,6.6195,151.07,151.02,15.646]
[1719924724053,6.6191,151.08,151.02,15.646]
[1719924724351,16.5444,151.11,151.02,15.646]
[1719924724542,6.6192,151.08,151.02,15.646]
[1719924724742,6.6187,151.09,151.02,15.646]
[1719924724943,26.619,151.08,151.02,15.646]
[1719924725339,6.6195,151.07,151.02,15.646]
[1719924726034,20.0,151.08,151.02,15.646]
[1719924726236,20.0,151.1,151.02,15.646]
[1719924726446,20.0,151.1,150.97,48.7619]
[1719924726447,16.5491,151.07,150.97,48.7619]
[1719924726644,20.0,151.06,150.97,21.7019]
[1719924726838,6.6228,151.0,150.97,21.7019]
[1719924727043,43.611,151.05,150.97,21.7019]
[1719924727234,6.6226,151.0,150.97,21.7019]
[1719924727431,6.6226,151.0,150.97,15.1285]
[1719924727631,6.6226,151.0,150.93,6.1495]
[1719924727632,6.6233,150.98,150.93,22.1613]
[1719924728449,6.6239,150.97,150.93,22.1613]
[1719924728847,16.5555,151.01,150.93,22.1613]
[1719924729036,20.0,151.0,150.93,22.1613]
[1719924729432,6.6237,150.98,150.93,22.1613]
[1719924729836,6.6239,150.97,150.93,22.1613]
[1719924730643,6.6239,150.97,150.93,16.0118]
[1719924730644,6.6241,150.97,150.93,16.0118]
[1719924730944,6.6235,150.98,150.93,16.0118]
[1719924731149,20.0,151.0,150.93,16.0118]
[1719924731539,16.5578,150.99,150.89,22.02]
[1719924731739,6.6251,150.94,150.89,22.02]
[1719924733245,6.6248,150.95,150.89,22.02]
[1719924733449,20.0,150.94,150.89,22.02]
[1719924734048,20.0,150.94,150.85,43.2347]
[1719924734249,6.6268,150.91,150.85,16.1747]
[1719924734450,20.0,150.95,150.85,16.1747]
[1719924734958,16.5632,150.94,150.85,16.1747]
[1719924735161,6.6267,150.91,150.85,16.1747]
[1719924735747,16.5632,150.94,150.85,16.1747]
[1719924735938,6.6266,150.91,150.85,16.1747]
[1719924736137,20.0,150.9,150.85,16.1747]
[1719924736765,6.6273,150.89,150.85,16.1747]
[1719924738061,6.6278,150.88,150.85,16.1747]
[1719924738255,20.0,150.92,150.8,15.9160174]
[1719924738256,6.629,150.86,150.8,15.9160174]
[1719924738655,43.628,150.9,150.8,15.9160174]
[1719924738861,20.0,150.89,150.8,15.9160174]
[1719924739456,6.6286,150.87,150.8,15.9160174]
[1719924739671,20.0,150.86,150.8,15.9160174]
[1719924739962,26.6288,150.86,150.8,15.9160174]
[1719924740148,6.6292,150.85,150.8,15.9160174]
[1719924740351,26.629,150.86,150.8,15.9160174]
[1719924740953,20.0,150.86,150.8,15.9160174]
[1719924741154,6.6296,150.84,150.8,15.9160174]
[1719924741356,6.6295,150.84,150.8,15.9160174]
[1719924741875,33.1134,151.0,150.8,15.9160174]
[1719924741876,6.89744702,150.98,150.89,100.0]
[1719924742045,15.6021,151.09,150.94,6.4369]
[1719924742463,27.06,151.06,150.94,6.4369]
[1719924742658,15.6021,151.09,150.89,15.2113]
[1719924742659,27.06,150.99,150.89,21.8498]
[1719924742858,6.6248,150.95,150.89,21.8498]
[1719924743063,16.5591,150.98,150.89,21.8498]
[1719924743266,27.06,150.96,150.85,6.1906]
[1719924743466,6.6265,150.91,150.85,6.1906]
[1719924743876,48.2179,150.96,150.85,6.1906]
[1719924744165,20.0,150.9,150.85,6.1906]
[1719924744360,6.627,150.9,150.85,6.1906]
[1719924744557,20.0,150.94,150.85,6.1906]
[1719924745080,45.0,150.93,150.85,6.1906]
[1719924745282,6.6274,150.89,150.84,15.223]
[1719924745487,6.6273,150.89,150.84,15.223]
[1719924745776,20.0,150.88,150.84,15.223]
[1719924745979,6.6283,150.87,150.81,6.2514]
[1719924746644,6.629,150.86,150.81,6.2514]
[1719924746869,6.6298,150.84,150.81,6.2514]
[1719924747066,20.0,150.83,150.8,0.8637174]
[1719924747369,20.0,150.88,150.8,0.8637174]
[1719924747568,26.6296,150.84,150.8,0.8637174]
[1719924747875,6.6296,150.84,150.8,0.8637174]
[1719924748066,20.0,150.83,150.8,0.8637174]
[1719924748963,20.0,150.84,150.8,0.8637174]
[1719924749467,26.6296,150.84,150.8,0.8637174]
[1719924750071,20.0,150.84,150.8,0.8637174]
[1719924750455,6.6287,150.86,150.8,0.8637174]
[1719924750675,20.0,150.85,150.8,0.8637174]
[1719924751363,26.6291,150.85,150.8,0.8637174]
[1719924751755,6.6296,150.84,150.8,0.8637174]
[1719924751952,20.0,150.85,150.8,0.8637174]
[1719924751953,20.0,150.83,150.8,0.8637174]
[1719924752479,20.0,150.88,150.8,0.8637174]
[1719924752652,6.6299,150.83,150.8,0.8637174]
[1719924752977,15.937,150.94,150.8,0.8637174]
[1719924752978,6.6308,150.81,150.8,0.8637174]
[1719924753470,26.6308,150.81,150.8,0.8637174]
[1719924754285,20.0,150.81,150.8,0.8637174]
[1719924754483,26.6308,150.81,150.8,0.8637174]
[1719924755984,20.0,150.81,150.8,0.8637174]
[1719924756789,26.6308,150.81,150.8,0.8637174]
[1719924767963,26.6308,150.81,150.75,0.03930631]
[1719924767964,6.633,150.76,150.75,0.03930631]
[1719924768173,6.633,150.76,150.68,22.9039]
[1719924768174,6.6342,150.74,150.68,22.9039]
[1719924768394,6.6345,150.73,150.68,22.9039]
[1719924768693,6.6347,150.73,150.68,22.9039]
[1719924770494,6.6337,150.75,150.68,22.9039]
[1719924770664,20.0,150.74,150.68,22.9039]
[1719924770861,6.6345,150.73,150.68,22.9039]
[1719924771969,6.6349,150.72,150.68,22.9039]
[1719924772369,20.0,150.74,150.68,22.9039]
[1719924772580,20.0,150.75,150.68,22.9039]
[1719924772988,6.6347,150.73,150.68,22.9039]
[1719924774088,6.6352,150.72,150.64,22.4548]
[1719924774267,6.6362,150.69,150.64,22.4548]
[1719924774470,16.5852,150.74,150.64,22.4548]
[1719924774789,6.6359,150.7,150.64,22.4548]
[1719924775486,6.6354,150.71,150.64,22.4548]
[1719924776195,6.6358,150.7,150.64,22.4548]
[1719924776784,6.6361,150.69,150.64,22.4548]
[1719924776985,6.6357,150.7,150.64,22.4548]
[1719924777188,36.5843,150.75,150.64,22.4548]
[1719924777394,6.6355,150.71,150.64,22.4548]
[1719924777575,6.6348,150.73,150.64,22.4548]
[1719924777773,20.0,150.72,150.64,22.4548]
[1719924778673,6.6361,150.69,150.64,22.4548]
[1719924779094,6.6358,150.7,150.64,22.4548]
[1719924779293,6.6353,150.71,150.64,22.4548]
[1719924779888,6.6357,150.7,150.64,22.4548]
[1719924780199,6.6362,150.69,150.64,22.4548]
[1719924780376,6.6358,150.7,150.64,22.4548]
[1719924780777,20.0,150.72,150.64,22.4548]
[1719924780984,6.6352,150.71,150.64,22.4548]
[1719924781609,6.6349,150.72,150.64,22.4548]
[1719924781818,26.6353,150.71,150.64,22.4548]
[1719924782015,20.0,150.74,150.64,22.4548]
[1719924782209,6.6353,150.71,150.64,22.4548]
[1719924782406,6.6358,150.7,150.64,22.4548]
[1719924782783,6.6366,150.68,150.64,22.4548]
[1719924782989,6.6361,150.69,150.64,22.4548]
[1719924783380,6.6358,150.7,150.64,22.4548]
[1719924783699,20.0,150.74,150.64,22.4548]
[1719924784010,16.5862,150.73,150.64,22.4548]
[1719924784214,6.6362,150.69,150.64,22.4548]
[1719924784416,16.589,150.71,150.64,22.4548]
[1719924784599,6.6367,150.68,150.64,22.4548]
[1719924785390,6.6361,150.69,150.64,22.4548]
[1719924785909,20.0,150.74,150.64,22.4548]
[1719924786482,6.6345,150.73,150.64,22.4548]
[1719924786813,16.5814,150.78,150.64,22.4548]
[1719924786989,6.6342,150.74,150.64,22.4548]
[1719924787196,6.6346,150.73,150.64,22.4548]
[1719924787708,6.634,150.74,150.64,22.4548]
[1719924788003,16.5799,150.79,150.66,15.2339]
[1719924788188,6.6342,150.74,150.66,15.2339]
[1719924788602,6.6336,150.75,150.66,15.2339]
[1719924789701,23.49247966,150.79,150.67,6.3666]
[1719924790007,6.6337,150.75,150.67,6.3666]
[1719924790215,16.5817,150.77,150.67,6.3666]
[1719924790510,6.6347,150.73,150.67,6.3666]
[1719924790802,20.0,150.76,150.67,6.3666]
[1719924790803,6.6353,150.71,150.67,6.3666]
[1719924791017,20.0,150.76,150.67,6.3666]
[1719924791184,6.6364,150.69,150.67,6.3666]
[1719924791383,6.6365,150.68,150.67,6.3666]
[1719924791694,6.6363,150.69,150.67,6.3666]
[1719924791898,6.6363,150.69,150.66,15.2339]
[1719924792220,16.5861,150.73,150.66,15.2339]
[1719924792388,20.0,150.72,150.63,6.5717]
[1719924792588,6.6368,150.68,150.63,6.5717]
[1719924792789,20.0,150.72,150.63,6.5717]
[1719924793006,6.6367,150.68,150.63,6.5717]
[1719924794310,6.637,150.67,150.63,6.5717]
[1719924795094,16.5892,150.71,150.63,6.5717]
[1719924795300,20.0,150.7,150.63,6.5717]
[1719924795502,6.6369,150.68,150.59,6.1319]
[1719924795710,6.6374,150.66,150.59,21.7018]
[1719924796215,26.6374,150.66,150.59,21.7018]
[1719924798497,20.0,150.66,150.59,21.7018]
[1719924798945,26.6374,150.66,150.59,21.7018]
[1719924799426,20.0,150.66,150.59,21.7018]
[1719924800096,26.6374,150.66,150.59,21.7018]
[1719924800392,20.0,150.66,150.59,21.7018]
[1719924800808,26.6374,150.66,150.59,21.7018]
[1719924805519,20.0,150.66,150.59,21.7018]
[1719924805694,26.6374,150.66,150.59,21.7018]
[1719924805903,20.0,150.66,150.59,21.7018]
[1719924806318,26.6374,150.66,150.59,21.7018]
[1719924808336,20.0,150.66,150.59,21.7018]
[1719924808727,26.6374,150.66,150.59,21.7018]
[1719924809020,6.88220343,150.68,150.6,1.32802157]
[1719924809200,6.6362,150.69,150.59,21.7018]
[1719924809624,6.6366,150.68,150.59,21.7018]
[1719924809919,23.46371154,150.71,150.59,21.7018]
[1719924810509,6.6374,150.66,150.59,21.7018]
[1719924810828,20.0,150.66,150.59,21.7018]
[1719924813436,26.6374,150.66,150.59,21.7018]
[1719924813929,20.0,150.66,150.59,21.7018]
[1719924814425,26.6374,150.66,150.59,21.7018]
[1719924815226,20.0,150.66,150.59,21.7018]
[1719924819025,13.51081154,150.71,150.61,27.13]
[1719924819026,6.87551154,150.71,150.61,27.13]
[1719924819331,5.31550754,150.74,150.61,27.13]
[1719924819514,6.6345,150.73,150.61,27.13]
[1719924819925,6.6352,150.71,150.61,27.13]
[1719924820222,6.6348,150.72,150.61,27.13]
[1719924820427,20.0,150.71,150.61,27.13]
[1719924820816,6.6352,150.71,150.61,27.13]
[1719924821018,26.6357,150.7,150.61,27.13]
[1719924821622,20.0,150.7,150.61,27.13]
[1719924822411,6.6366,150.68,150.61,27.13]
[1719924822607,6.6374,150.66,150.61,27.13]
[1719924822822,20.0,150.66,150.61,27.13]
[1719924828441,16.5868,150.73,150.61,27.13]
[1719924828942,6.6362,150.69,150.61,27.13]
[1719924829158,20.0,150.68,150.61,27.13]
[1719924829813,6.6349,150.72,150.61,27.13]
[1719924830011,20.0,150.71,150.61,27.13]
[1719924830425,20.0,150.72,150.64,27.13]
[1719924830622,26.6349,150.72,150.64,27.13]
[1719924831227,26.6349,150.72,150.66,16.2695]
[1719924831545,20.0,150.72,150.66,16.2695]
[1719924831745,6.6357,150.7,150.66,16.2695]
[1719924831947,20.0,150.69,150.66,16.2695]
[1719924832643,20.0,150.7,150.66,16.2695]
[1719924833143,26.6358,150.7,150.66,16.2695]
[1719924833342,20.0,150.7,150.66,16.2695]
[1719924833749,26.6357,150.7,150.66,16.2695]
[1719924834045,20.0,150.7,150.66,16.2695]
[1719924835043,26.6357,150.7,150.66,16.2695]
[1719924835250,6.6363,150.69,150.62,27.13]
[1719924835553,20.0,150.7,150.62,27.13]
[1719924835750,6.6356,150.71,150.62,27.13]
[1719924835954,20.0,150.7,150.62,27.13]
[1719924836453,20.0,150.72,150.66,6.1585]
[1719924836628,20.0,150.73,150.66,6.1585]
[1719924836828,6.87973731,150.74,150.66,6.1585]
[1719924837047,6.87973731,150.74,150.68,27.13]
[1719924837759,6.6328,150.77,150.68,27.13]
[1719924839057,20.0,150.76,150.68,27.13]
[1719924839263,6.87786208,150.79,150.68,27.13]
[1719924839422,6.87786208,150.79,150.72,6.6466]
[1719924839624,16.5758,150.83,150.72,6.6466]
[1719924839826,6.87907901,150.81,150.72,6.6466]
[1719924840026,6.87907901,150.81,150.73,16.3478]
[1719924840256,22.80389438,150.85,150.73,16.3478]
[1719924840453,6.87950475,150.84,150.74,27.13]
[1719924840665,6.6307,150.82,150.74,27.13]
[1719924841029,6.87950475,150.84,150.74,27.13]
[1719924841227,6.87950475,150.84,150.78,6.6466]
[1719924841451,6.87950475,150.84,150.8,27.13]
[1719924843141,262.6886,150.92,150.8,27.13]
[1719924843330,262.6886,150.92,150.79,16.3478]
[1719924843331,256.6,150.92,150.83,27.13]
[1719924843738,6.6267,150.91,150.83,27.13]
[1719924843964,256.6,150.92,150.83,27.13]
[1719924844265,6.6272,150.9,150.83,27.13]
[1719924844473,6.6275,150.89,150.83,27.13]
[1719924844841,6.6269,150.9,150.83,27.13]
[1719924845257,263.47689683,150.92,150.8,27.13]
[1719924845258,280.04239683,150.92,150.8,27.13]
[1719924845471,6.6281,150.88,150.8,27.13]
[1719924845646,20.0,150.91,150.8,27.13]
[1719924845647,6.6282,150.87,150.8,27.13]
[1719924845847,6.6278,150.88,150.8,27.13]
[1719924846061,6.6272,150.9,150.8,27.13]
[1719924846247,26.6273,150.89,150.8,27.13]
[1719924846449,20.0,150.91,150.8,27.13]
[1719924846643,6.6278,150.88,150.8,27.13]
[1719924846884,20.0,150.91,150.8,27.13]
[1719924847042,6.6274,150.89,150.8,27.13]
[1719924847243,20.0,150.88,150.8,27.13]
[1719924847674,6.6284,150.87,150.8,27.13]
[1719924847973,20.0,150.86,150.8,27.13]
[1719924849349,20.0,150.87,150.8,27.13]
[1719924850979,270.10299683,150.92,150.8,27.13]
[1719924851152,26.6265,150.91,150.83,27.13]
[1719924851772,6.6265,150.91,150.83,27.13]
[1719924852458,6.6265,150.91,150.84,6.4701]
[1719924852770,6.87689683,150.92,150.84,6.4701]
[1719924852978,20.0,150.91,150.84,6.4701]
[1719924853749,20.0,150.91,150.85,16.1633]
[1719924855158,26.6265,150.91,150.85,16.1633]
[1719924855358,20.0,150.91,150.85,16.1633]
[1719924856059,6.6278,150.88,150.85,16.1633]
[1719924856266,20.0,150.92,150.84,6.4701]
[1719924856267,16.5663,150.91,150.84,6.4701]
[1719924856458,6.6283,150.87,150.84,6.4701]
[1719924856964,6.6278,150.88,150.84,6.4701]
[1719924857166,6.6283,150.87,150.84,6.4701]
[1719924857747,6.6278,150.88,150.84,6.4701]
[1719924858247,6.6278,150.88,150.81,43.1468]
[1719924858461,20.0,150.87,150.81,16.0168]
[1719924859559,20.0,150.89,150.82,27.13]
[1719924859765,20.0,150.9,150.82,27.13]
[1719924859969,26.6269,150.9,150.82,27.13]
[1719924861867,20.0,150.9,150.82,27.13]
[1719924862075,20.0,150.9,150.81,16.0168]
[1719924862076,6.87763079,150.94,150.85,15.6006]
[1719924862250,6.87763079,150.94,150.87,6.5946]
[1719924862449,6.625,150.95,150.87,6.5946]
[1719924862768,6.6253,150.94,150.87,6.5946]
[1719924863161,6.6248,150.95,150.87,6.5946]
[1719924863556,20.0,150.94,150.87,6.5946]
[1719924865378,20.0,150.95,150.87,6.5946]
[1719924865577,26.6243,150.96,150.89,27.13]
[1719924866449,20.0,150.96,150.87,6.5946]
[1719924866656,45.0,150.95,150.87,6.5946]
[1719924866857,6.6266,150.91,150.87,6.5946]
[1719924867172,6.626,150.92,150.87,6.5946]
[1719924868448,6.6264,150.91,150.87,6.5946]
[1719924868761,6.6267,150.91,150.85,42.7306]
[1719924868961,16.5644,150.93,150.85,15.6006]
[1719924869160,6.6273,150.89,150.85,15.6006]
[1719924869362,6.6269,150.9,150.85,15.6006]
[1719924869579,16.5613,150.96,150.85,15.6006]
[1719924869883,36.5613,150.96,150.85,15.6006]
[1719924870359,6.6267,150.91,150.85,15.6006]
[1719924871276,6.6262,150.92,150.85,15.6006]
[1719924871478,26.6264,150.91,150.85,15.6006]
[1719924871862,20.0,150.91,150.85,15.6006]
[1719924872258,6.626,150.92,150.85,15.6006]
[1719924872460,20.0,150.91,150.85,15.6006]
[1719924872854,6.6269,150.9,150.85,15.6006]
[1719924873082,20.0,150.91,150.85,15.6006]
[1719924873459,16.5654,150.92,150.81,16.6238]
[1719924873776,6.6279,150.88,150.81,16.6238]
[1719924873982,6.6274,150.89,150.81,16.6238]
[1719924876063,6.627,150.9,150.81,16.6238]
[1719924876264,20.0,150.89,150.81,16.6238]
[1719924876965,20.0,150.9,150.81,16.6238]
[1719924877269,20.0,150.9,150.83,27.13]
[1719924878171,26.626,150.92,150.83,27.13]
[1719924880066,20.0,150.92,150.83,27.13]
[1719924880788,26.626,150.92,150.83,27.13]
[1719924881578,20.0,150.92,150.83,27.13]
[1719924881863,6.6261,150.92,150.83,27.13]
[1719924882079,20.0,150.91,150.83,27.13]
[1719924883084,6.6257,150.93,150.83,27.13]
[1719924883085,20.0,150.92,150.83,27.13]
[1719924883974,26.6261,150.92,150.83,27.13]
[1719924884292,6.6265,150.91,150.83,27.13]
[1719924885187,20.0,150.92,150.83,27.13]
[1719924885390,45.0,150.91,150.83,27.13]
[1719924885578,45.0,150.92,150.83,27.13]
[1719924885780,61.566,150.92,150.81,16.6238]
[1719924885988,20.0,150.91,150.81,16.6238]
[1719924886498,26.6267,150.91,150.81,16.6238]
[1719924888189,6.6269,150.9,150.81,16.6238]
[1719924888381,20.0,150.89,150.81,16.6238]
[1719924889092,6.628,150.88,150.81,16.6238]
[1719924889295,26.6274,150.89,150.81,16.6238]
[1719924889495,20.0,150.89,150.81,16.6238]
[1719924890202,6.6278,150.88,150.81,16.6238]
[1719924890397,6.6283,150.87,150.81,16.6238]
[1719924890994,6.6279,150.88,150.81,16.6238]
[1719924891191,6.6282,150.87,150.81,16.6238]
[1719924891900,6.6279,150.88,150.81,16.6238]
[1719924892089,26.6274,150.89,150.81,16.6238]
[1719924892699,6.6279,150.88,150.81,16.6238]
[1719924893995,26.6275,150.89,150.81,16.6238]
[1719924894296,20.0,150.89,150.81,16.6238]
[1719924895079,26.6273,150.89,150.81,16.6238]
[1719924895792,26.6273,150.89,150.85,13.53]
[1719924895995,20.0,150.89,150.85,13.53]
[1719924896695,20.0,150.89,150.81,16.6238]
[1719924897008,6.6289,150.86,150.81,16.6238]
[1719924897178,13.53,150.86,150.81,16.6238]
[1719924897381,6.6295,150.84,150.81,16.6238]
[1719924897681,6.6296,150.84,150.81,16.6238]
[1719924897888,6.6298,150.84,150.81,16.6238]
[1719924898086,20.1591,150.85,150.81,16.6238]
[1719924898288,26.6295,150.84,150.81,16.6238]
[1719924899179,20.0,150.84,150.81,16.6238]
[1719924901575,26.6297,150.84,150.81,16.6238]
[1719924901778,20.0,150.84,150.81,16.6238]
[1719924903015,20.0,150.85,150.81,16.6238]
[1719924903306,26.6291,150.85,150.81,16.6238]
[1719924903505,6.88015426,150.87,150.81,16.6238]
[1719924903709,20.0,150.86,150.81,16.6238]
[1719924904601,6.628,150.88,150.81,16.6238]